Workbook

Sheet Page 1
A1: 10-ти дневное меню для обеспечения бесплатным двухразовым питанием обучающихся с ограниченными возможностями здоровья, детей - инвалидов возрастной группы 12-18 лет МОУ
A2: Утверждаю | F2: Согласовано
A3: Директор | F3: Директор
A4: ___________________ | F4: ___________________
A5: 1 день
A6: Прием пищи, наименование блюда | B6: Масса порции | C6: Пищевые вещества | F6: Энергети-ческая ценность, ккал | G6: № рецеп-туры | H6: Сборник рецептур
C7: Белки, г | D7: Жиры, г | E7: Углеводы, г
A8: Завтрак
A9: ОВОЩИ ПО СЕЗОНУ (ОГУРЕЦ СОЛЕНЫЙ или ОГУРЕЦ СВЕЖИЙ)№ 1 | B9: 100 | C9: 0.50 | D9: 0.10 | E9: 1.01 | F9: 6.00 | G9: 1
A10: ГУЛЯШ ИЗ МЯСА ПТИЦЫ №311К | B10: 100 | C10: 9.60 | D10: 11.60 | E10: 7.50 | F10: 175.90 | G10: 311К
A11: МАКАРОННЫЕ ИЗДЕЛИЯ ОТВАРНЫЕ №203 | B11: 170 | C11: 4.19 | D11: 6.50 | E11: 32.00 | F11: 221.80 | G11: 203 | H11: 2017
A12: КОМПОТ ИЗ СУХОФРУКТОВ №53 | B12: 200 | C12: 0.30 | D12: 0.00 | E12: 16.00 | F12: 66.40 | G12: 53
A13: ХЛЕБ ПШЕНИЧНЫЙ №6 | B13: 50 | C13: 3.95 | D13: 0.50 | E13: 21.15 | F13: 116.33 | G13: 6
A14: Итого за прием пищи: | B14: =B13+B12+B11+B10+B9 -> 620 | C14: =C13+C12+C11+C10+C9 -> 18.54 | D14: =D13+D12+D11+D10+D9 -> 18.7 | E14: =E13+E12+E11+E10+E9 -> 77.66 | F14: =F13+F12+F11+F10+F9 -> 586.43
A15: Полдник
A16: БУЛОЧКА СДОБНАЯ № 146 | B16: 100 | C16: 8.90 | D16: 9.50 | E16: 31.50 | F16: 220.10 | G16: 146
A17: КОМПОТ ИЗ СУХОФРУКТОВ №53 | B17: 250 | C17: 0.50 | D17: 0.00 | E17: 20.00 | F17: 98.00 | G17: 53
A18: Итого за прием пищи: | B18: 350 | C18: =SUM(C16:C17) -> 9.40 | D18: =SUM(D16:D17) -> 9.50 | E18: =SUM(E16:E17) -> 51.50 | F18: 318.10
A19: Утверждаю | F19: Согласовано
A20: Директор | F20: Директор
A21: ___________________ | F21: ___________________
A22: 2 день
A23: Прием пищи, наименование блюда | B23: Масса порции | C23: Пищевые вещества | F23: Энергети-ческая ценность, ккал | G23: № рецеп-туры | H23: Сборник рецептур
C24: Белки, г | D24: Жиры, г | E24: Углеводы, г
A25: Завтрак
A26: СВЕКЛА ОТВАРНАЯ №2 | B26: 100/2 | C26: 1.5 | D26: 0.1 | E26: 8.5 | F26: 40.7 | G26: 2
A27: ТЕФТЕЛИ С РИСОМ (говядина) С СОУСОМ ТОМАТНЫМ №307/363 | B27: 100/30 | C27: 12.70 | D27: 12.80 | E27: 15.50 | F27: 227.30 | G27: 307/363
A28: КАША ГРЕЧНЕВАЯ ВЯЗКАЯ (ГАРНИР) №303 | B28: 160 | C28: 4.90 | D28: 4.90 | E28: 27.30 | F28: 145.84 | G28: 303
A29: ЧАЙ С САХАРОМ № 685 | B29: 200 | C29: 0.20 | D29: 0.00 | E29: 15.00 | F29: 58.00 | G29: 685 | H29: 2011
A30: ХЛЕБ РЖАНО-ПШЕНИЧНЫЙ №7 | B30: 50 | C30: 3.13 | D30: 0.50 | E30: 20.63 | F30: 99.00 | G30: 7
A31: Итого за прием пищи: | B31: 642 | C31: =SUM(C26:C30) -> 22.4 | D31: =SUM(D26:D30) -> 18.3 | E31: =SUM(E26:E30) -> 86.9 | F31: =SUM(F26:F30) -> 570.8
A32: Полдник
A33: КРУАССАН № 147 | B33: 100 | C33: 8.30 | D33: 8.80 | E33: 32.20 | F33: 218.80 | G33: 147
A34: КОФЕЙНЫЙ НАПИТОК С МОЛОКОМ № 379 | B34: 250 | C34: 4.35 | D34: 4.00 | E34: 23.40 | F34: 150.10 | G34: 379
A35: Итого за прием пищи: | B35: 350 | C35: =SUM(C33:C34) -> 12.65 | D35: =SUM(D33:D34) -> 12.80 | E35: =SUM(E33:E34) -> 55.60 | F35: 368.90
A36: Утверждаю | F36: Согласовано
A37: Директор | F37: Директор
A38: ___________________ | F38: ___________________
A39: 3 день
A40: Прием пищи, наименование блюда | B40: Масса порции | C40: Пищевые вещества | F40: Энергети-ческая ценность, ккал | G40: № рецеп-туры | H40: Сборник рецептур
C41: Белки, г | D41: Жиры, г | E41: Углеводы, г
A42: Завтрак
A43: ОВОЩИ ПО СЕЗОНУ (ПОМИДОР СОЛЕНЫЙ или ПОМИДОР СВЕЖИЙ) № 27 | B43: 100 | C43: 1.1 | D43: 0.0 | E43: 2.3 | F43: 18.0 | G43: 27
A44: ПЛОВ ИЗ ПТИЦЫ № 492 | B44: 220 | C44: 16.50 | D44: 22.44 | E44: 38.70 | F44: 432.25 | G44: 492
A45: КОМПОТ ИЗ СУХОФРУКТОВ №53 | B45: 200 | C45: 0.30 | D45: 0.00 | E45: 16.00 | F45: 66.40 | G45: 53
A46: ХЛЕБ РЖАНО-ПШЕНИЧНЫЙ №7 | B46: 50 | C46: 3.13 | D46: 0.50 | E46: 20.63 | F46: 99.00 | G46: 7
A47: Итого за прием пищи: | B47: =SUM(B43:B46) -> 570 | C47: =SUM(C43:C46) -> 21.03 | D47: =SUM(D43:D46) -> 22.94 | E47: =SUM(E43:E46) -> 77.63 | F47: =SUM(F43:F46) -> 615.65
A48: Полдник
A49: ПИРОЖОК В АССОРТИМЕНТЕ №140 | B49: 100 | C49: 8.80 | D49: 9.60 | E49: 33.70 | F49: 226.90 | G49: 140
A50: ЧАЙ С САХАРОМ № 685 | B50: 250 | C50: 0.30 | D50: 0.00 | E50: 22.00 | F50: 73.00 | G50: 685 | H50: 2011
A51: Итого за прием пищи: | B51: 350 | C51: =SUM(C49:C50) -> 9.10 | D51: =SUM(D49:D50) -> 9.60 | E51: =SUM(E49:E50) -> 55.70 | F51: 299.90
A52: Утверждаю | F52: Согласовано
A53: Директор | F53: Директор
A54: ___________________ | F54: ___________________
A55: 4 день
A56: Прием пищи, наименование блюда | B56: Масса порции | C56: Пищевые вещества | F56: Энергети-ческая ценность, ккал | G56: № рецеп-туры | H56: Сборник рецептур
C57: Белки, г | D57: Жиры, г | E57: Углеводы, г
A58: Завтрак
A59: БЛЮДО ИЗ РЫБЫ (РЫБА,ТУШЕНАЯ В ТОМАТЕ С ОВОЩАМИ №229 или КОТЛЕТЫ РЫБНЫЕ В ТОМАТНОМ СОУСЕ ТТК№106 ) | B59: 100 | C59: 10,2/12,9 | D59: 12,9/13,10 | E59: 13,3/14,40 | F59: 175,00/176,6 | G59: 229/106 | H59: 2017
A60: КАРТОФЕЛЬ ОТВАРНОЙ С МАСЛОМ №310 | B60: 200 | C60: 3.80 | D60: 5.74 | E60: 30.68 | F60: 192.80 | G60: 310 | H60: 2017
A61: ЧАЙ С САХАРОМ И ЛИМОНОМ №686 | B61: 200 | C61: 0.30 | D61: 0.00 | E61: 15.20 | F61: 60.00 | G61: 686 | H61: 2011
A62: ХЛЕБ ПШЕНИЧНЫЙ №6 | B62: 50 | C62: 3.95 | D62: 0.50 | E62: 21.15 | F62: 116.33 | G62: 6
A63: Итого за прием пищи: | B63: =SUM(B59:B62) -> 550 | C63: 18,25/20,95 | D63: 19,14/19,34 | E63: 80,33/81,43 | F63: 544,13/545,73
A64: Полдник
A65: БУЛОЧКА СДОБНАЯ № 146 | B65: 100 | C65: 8.90 | D65: 9.50 | E65: 31.50 | F65: 220.10 | G65: 146
A66: КОМПОТ ИЗ ИЗЮМА №51 | B66: 250 | C66: 0.38 | D66: 0.00 | E66: 20.00 | F66: 83.00 | G66: 51
A67: Итого за прием пищи: | B67: 350 | C67: =SUM(C65:C66) -> 9.28 | D67: =SUM(D65:D66) -> 9.50 | E67: =SUM(E65:E66) -> 51.50 | F67: 303.10
A68: Утверждаю | F68: Согласовано
A69: Директор | F69: Директор
A70: ___________________ | F70: ___________________
A71: 5 день
A72: Прием пищи, наименование блюда | B72: Масса порции | C72: Пищевые вещества | F72: Энергети-ческая ценность, ккал | G72: № рецеп-туры | H72: Сборник рецептур
C73: Белки, г | D73: Жиры, г | E73: Углеводы, г
A74: Завтрак
A75: КАША МОЛОЧНАЯ ИЗ РИСА И ПШЕНА ДРУЖБА С МАСЛОМ №175 | B75: 180 | C75: 13.60 | D75: 13.90 | E75: 31.25 | F75: 270.00 | G75: 175
A76: БУТЕРБРОД С ПОВИДЛОМ №2 | B76: 30/20 | C76: 5.00 | D76: 4.40 | E76: 25.20 | F76: 156.00 | G76: 2 | H76: 2017
A77: ЧАЙ С САХАРОМ № 685 | B77: 200 | C77: 0.20 | D77: 0.00 | E77: 15.00 | F77: 58.00 | G77: 685 | H77: 2011
A78: ФРУКТЫ СВЕЖИЕ (ЯБЛОКО) №338 | B78: 150 | C78: 0.80 | D78: 0.80 | E78: 17.90 | F78: 85.50 | G78: 338 | H78: 2017
A79: Итого за прием пищи: | B79: 580 | C79: =SUM(C75:C78) -> 19.60 | D79: =SUM(D75:D78) -> 19.10 | E79: =SUM(E75:E78) -> 89.35 | F79: =SUM(F75:F78) -> 569.50
A80: Полдник
A81: КРУАССАН № 147 | B81: 100 | C81: 8.30 | D81: 8.80 | E81: 32.20 | F81: 218.80 | G81: 147
A82: КОМПОТ ИЗ СУХОФРУКТОВ №53 | B82: 250 | C82: 0.50 | D82: 0.00 | E82: 20.00 | F82: 98.00 | G82: 53
A83: Итого за прием пищи: | B83: 350 | C83: =SUM(C81:C82) -> 8.80 | D83: =SUM(D81:D82) -> 8.80 | E83: =SUM(E81:E82) -> 52.20 | F83: 316.80
A84: Утверждаю | F84: Согласовано
A85: Директор | F85: Директор
A86: ___________________ | F86: ___________________
A87: 6 день
A88: Прием пищи, наименование блюда | B88: Масса порции | C88: Пищевые вещества | F88: Энергети-ческая ценность, ккал | G88: № рецеп-туры | H88: Сборник рецептур
C89: Белки, г | D89: Жиры, г | E89: Углеводы, г
A90: Завтрак
A91: КАША МОЛОЧНАЯ ИЗ МАННОЙ КРУПЫ №181 | B91: 180 | C91: 9.50 | D91: 9.20 | E91: 35.66 | F91: 238.06 | G91: 181
A92: БУТЕРБРОД С МАСЛОМ И СЫРОМ №3 | B92: 35/5/10 | C92: 5.80 | D92: 8.00 | E92: 11.60 | F92: 147.00 | G92: 3 | H92: 2017
A93: КОФЕЙНЫЙ НАПИТОК С МОЛОКОМ № 379 | B93: 200 | C93: 3.16 | D93: 2.66 | E93: 15.94 | F93: 100.60 | G93: 379
A94: ФРУКТЫ СВЕЖИЕ (ЯБЛОКО)№338 | B94: 150 | C94: 0.80 | D94: 0.80 | E94: 17.90 | F94: 85.50 | G94: 338 | H94: 2017
A95: Итого за прием пищи: | B95: 580 | C95: =SUM(C91:C94) -> 19.26 | D95: =SUM(D91:D94) -> 20.66 | E95: =SUM(E91:E94) -> 81.10 | F95: =SUM(F91:F94) -> 571.16
A96: Полдник
A97: ПИРОЖОК В АССОРТИМЕНТЕ №140 | B97: 100 | C97: 8.80 | D97: 9.60 | E97: 33.70 | F97: 226.90 | G97: 140
A98: ЧАЙ С САХАРОМ № 685 | B98: 250 | C98: 0.30 | D98: 0.00 | E98: 22.00 | F98: 73.00 | G98: 685 | H98: 2011
A99: Итого за прием пищи: | B99: 350 | C99: =SUM(C97:C98) -> 9.10 | D99: =SUM(D97:D98) -> 9.60 | E99: =SUM(E97:E98) -> 55.70 | F99: 299.90
A100: Утверждаю | F100: Согласовано
A101: Директор | F101: Директор
A102: ___________________ | F102: ___________________
A103: 7 день
A104: Прием пищи, наименование блюда | B104: Масса порции | C104: Пищевые вещества | F104: Энергети-ческая ценность, ккал | G104: № рецеп-туры | H104: Сборник рецептур
C105: Белки, г | D105: Жиры, г | E105: Углеводы, г
A106: Завтрак
A107: ОВОЩИ ПО СЕЗОНУ ( КАПУСТА КВАШЕНАЯ №3 или ИКРА КАБАЧКОВАЯ №88) | B107: 100 | C107: 1.80 | D107: 8.60 | E107: 7.50 | F107: 115.40 | G107: 3/88
A108: КОТЛЕТА РУБЛЕНАЯ С БЕЛОКОЧАННОЙ КАПУСТОЙ (говядина) С СОУСОМ ТОМАТНЫМ № 455/363 | B108: 100/30 | C108: 10.90 | D108: 9.80 | E108: 22.40 | F108: 210.60 | G108: 455/363
A109: КАША ГРЕЧНЕВАЯ ВЯЗКАЯ (ГАРНИР) №303 | B109: 160 | C109: 4.90 | D109: 4.90 | E109: 27.30 | F109: 145.84 | G109: 303
A110: КОМПОТ ИЗ СУХОФРУКТОВ №53 | B110: 200 | C110: 0.30 | D110: 0.00 | E110: 16.00 | F110: 66.40 | G110: 53
A111: ХЛЕБ ПШЕНИЧНЫЙ №6 | B111: 30 | C111: 2.37 | D111: 0.30 | E111: 14.49 | F111: 70.90 | G111: 6
A112: Итого за прием пищи: | B112: 620 | C112: =SUM(C107:C111) -> 20.27 | D112: =SUM(D107:D111) -> 23.60 | E112: =SUM(E107:E111) -> 87.69 | F112: =SUM(F107:F111) -> 609.14
A113: Полдник
A114: БУЛОЧКА СДОБНАЯ № 146 | B114: 100 | C114: 8.90 | D114: 9.50 | E114: 31.50 | F114: 220.10 | G114: 146
A115: ЧАЙ С САХАРОМ № 685 | B115: 250 | C115: 0.30 | D115: 0.00 | E115: 22.00 | F115: 73.00 | G115: 685 | H115: 2011
A116: Итого за прием пищи: | B116: 350 | C116: =SUM(C114:C115) -> 9.20 | D116: =SUM(D114:D115) -> 9.50 | E116: =SUM(E114:E115) -> 53.50 | F116: =SUM(F114:F115) -> 293.10
A117: Утверждаю | F117: Согласовано
A118: Директор | F118: Директор
A119: ___________________ | F119: ___________________
A120: 8 день
A121: Прием пищи, наименование блюда | B121: Масса порции | C121: Пищевые вещества | F121: Энергети-ческая ценность, ккал | G121: № рецеп-туры | H121: Сборник рецептур
C122: Белки, г | D122: Жиры, г | E122: Углеводы, г
A123: Завтрак
A124: ОВОЩИ ПО СЕЗОНУ (ОГУРЕЦ СОЛЕНЫЙ или ОГУРЕЦ СВЕЖИЙ)№ 1 | B124: 100 | C124: 0.5 | D124: 0.1 | E124: 1.01 | F124: 6.0 | G124: 1
A125: ЖАРКОЕ ПО-ДОМАШНЕМУ № 259 | B125: 250 | C125: 14.30 | D125: 20.50 | E125: 53.40 | F125: 406.00 | G125: 259
A126: ЧАЙ С САХАРОМ № 685 | B126: 200 | C126: 0.20 | D126: 0.00 | E126: 15.00 | F126: 58.00 | G126: 685 | H126: 2011
A127: ХЛЕБ ПШЕНИЧНЫЙ | B127: 50 | C127: 3.95 | D127: 0.50 | E127: 21.15 | F127: 116.33 | G127: 6
A128: Итого за прием пищи: | B128: =SUM(B124:B127) -> 600 | C128: =SUM(C124:C127) -> 18.95 | D128: =SUM(D124:D127) -> 21.06 | E128: =SUM(E124:E127) -> 90.56 | F128: =SUM(F124:F127) -> 586.33
A129: Полдник
A130: КРУАССАН № 147 | B130: 100 | C130: 8.30 | D130: 8.80 | E130: 32.20 | F130: 218.80 | G130: 147
A131: ЧАЙ С САХАРОМ КАРКАДЕ №685К | B131: 250 | C131: 0.30 | D131: 0.00 | E131: 13.50 | F131: 60.50 | G131: 685К | H131: 2011
A132: Итого за прием пищи: | B132: 350 | C132: =SUM(C130:C131) -> 8.60 | D132: =SUM(D130:D131) -> 8.80 | E132: =SUM(E130:E131) -> 45.70 | F132: 279.30
A133: Утверждаю | F133: Согласовано
A134: Директор | F134: Директор
A135: ___________________ | F135: ___________________
A136: 9 день
A137: Прием пищи, наименование блюда | B137: Масса порции | C137: Пищевые вещества | F137: Энергети-ческая ценность, ккал | G137: № рецеп-туры | H137: Сборник рецептур
C138: Белки, г | D138: Жиры, г | E138: Углеводы, г
A139: Завтрак
A140: КОТЛЕТЫ РУБЛЕНЫЕ ИЗ ПТИЦЫ С СОУСОМ ТОМАТНЫМ №294/363 | B140: 100/30 | C140: 12.20 | D140: 14.80 | E140: 15.40 | F140: 220.80 | G140: 294/363
A141: МАКАРОННЫЕ ИЗДЕЛИЯ ОТВАРНЫЕ №203 | B141: 170 | C141: 4.19 | D141: 6.50 | E141: 32.00 | F141: 221.80 | G141: 203 | H141: 2017
A142: ЧАЙ С САХАРОМ И ЛИМОНОМ №686 | B142: 200 | C142: 0.30 | D142: 0.00 | E142: 15.20 | F142: 60.00 | G142: 686 | H142: 2011
A143: ХЛЕБ ПШЕНИЧНЫЙ №6 | B143: 50 | C143: 3.95 | D143: 0.50 | E143: 21.15 | F143: 116.33 | G143: 6
A144: Итого за прием пищи: | B144: 550 | C144: =SUM(C140:C143) -> 20.64 | D144: =SUM(D140:D143) -> 21.80 | E144: =SUM(E140:E143) -> 83.75 | F144: =SUM(F140:F143) -> 618.93
A145: Полдник
A146: ПИРОЖОК В АССОРТИМЕНТЕ №140 | B146: 100 | C146: 8.80 | D146: 9.60 | E146: 33.70 | F146: 226.90 | G146: 140
A147: СОК ФРУКТОВЫЙ (ЯБЛОЧНЫЙ) | B147: 250 | C147: 0.25 | D147: 0.25 | E147: 20.62 | F147: 112.70 | G147: 389
A148: Итого за прием пищи: | B148: 350 | C148: =SUM(C146:C147) -> 9.05 | D148: =SUM(D146:D147) -> 9.85 | E148: =SUM(E146:E147) -> 54.32 | F148: 339.60
A149: Утверждаю | F149: Согласовано
A150: Директор | F150: Директор
A151: ___________________ | F151: ___________________
A152: 10 день
A153: Прием пищи, наименование блюда | B153: Масса порции | C153: Пищевые вещества | F153: Энергети-ческая ценность, ккал | G153: № рецеп-туры | H153: Сборник рецептур
C154: Белки, г | D154: Жиры, г | E154: Углеводы, г
A155: Завтрак
A156: ЛАПШЕВНИК С ТВОРОГОМ С СОУСОМ МОЛОЧНЫМ №154 | B156: 250/30 | C156: 12.5 | D156: 16.6 | E156: 48.5 | F156: 321.1 | G156: 154
A157: ПЕЧЕНЬЕ №9 | B157: 30 | C157: 3.80 | D157: 4.10 | E157: 14.00 | F157: 90.50 | G157: 9
A158: ЧАЙ С САХАРОМ КАРКАДЕ №685К | B158: 200 | C158: 0.20 | D158: 0.00 | E158: 9.20 | F158: 42.00 | G158: 685К | H158: 2011
A159: ХЛЕБ ПШЕНИЧНЫЙ №6 | B159: 50 | C159: 3.95 | D159: 0.50 | E159: 21.15 | F159: 116.33 | G159: 6
A160: Итого за прием пищи: | B160: 560 | C160: =SUM(C156:C159) -> 20.45 | D160: =SUM(D156:D159) -> 21.2 | E160: =SUM(E156:E159) -> 92.85 | F160: 569.93
A161: Полдник
A162: БУЛОЧКА СДОБНАЯ № 146 | B162: 100 | C162: 8.90 | D162: 9.50 | E162: 31.50 | F162: 220.10 | G162: 146
A163: КОМПОТ ИЗ СУХОФРУКТОВ №53 | B163: 250 | C163: 0.50 | D163: 0.00 | E163: 20.00 | F163: 98.00 | G163: 53
A164: Итого за прием пищи: | B164: 350 | C164: =SUM(C162:C163) -> 9.40 | D164: =SUM(D162:D163) -> 9.50 | E164: =SUM(E162:E163) -> 51.50 | F164: 318.10
A165: ИТОГО ПО ПРИМЕРНОМУ МЕНЮ | C165: =C164+C160+C148+C144+C132+C128+C116+C112+C99+C95+C83+C79+C67+C51+C47+C35+C31+C18+C14+20.95 -> 296.70 | D165: =D164+D160+D148+D144+D132+D128+D116+D112+D99+D95+D83+D79+D67+D51+D47+D35+D31+D18+D14+19.34 -> 304.15 | E165: =E164+E160+E148+E144+E132+E128+E116+E112+E99+E95+E83+E79+E67+E51+E47+E35+E31+E18+E14+81.43 -> 1 376.17 | F165: =F164+F160+F148+F144+F132+F128+F116+F112+F99+F95+F83+F79+F67+F51+F47+F35+F31+F18+F14+545.73 -> 8 980.44 | L165: б
A166: Итого | C166: б | D166: ж | E166: уг | F166: ккал | N166: б 180-225
A167: Итого за период | C167: 293,6/296,3 | D167: 303,55/303,75 | E167: 1367,87/1368,97 | F167: 8944,64/8946,24
A168: Среднее значение за период | C168: 29,4/29,6 | D168: 30,4/30,4 | E168: 136,8/136,9 | F168: 894,46/894,62
A169: Соотношение пищевых веществ | C169: 1 | D169: 1 | E169: 4
A170: Сборник рецептур на продукцию для обучающихся во всех образовательных учреждениях / Под ред. М.П. Могильного и В.А. Тутельяна. - М.:ДеЛи плюс, 2017. - 543с.
A171: Сборник рецептур и кулинарных изделий для предприятий общественного питания при общеобразовательных школах / Под ред. В.Т. Лапшиной. - М.: Хлебпродинформ, 2004. - 640с.
A172: Сборник рецептур блюд и кулинарных изделий для обучающихся образовательных организаций. Сборник технических нормативов. ФГФУ НЦЗД Минздрава России, НИИ ГиОЗДиП / под редакцией член-корр. РАН, д.м.н., профессора В.Р. Кучмы - М.: Издатель Научный центр здоровья детей, 2016. - 560 с.
A173: Таблицы химического состава и калорийности российских продуктов питания: Справочник. - М.: ДеЛи принт, 2008. - 276с. Скурихин И.М., Тутельян В.А.
A174: Сборник рецептур блюд и кулинарных изделий для питания детей в дошкольных организациях / Под ред. М.П. Могильного и В.А. Тутельяна. - М.:ДеЛи принт, 2011. - 584с.

Sheet Г1 (7)
A3: У Т В Е Р Ж Д А Ю: | F3: С О Г Л А С О В А Н О:
A4: Директор ООО "Союз-К" | F4: Директор МБОУ "Куликовская СШ"
A5: ______________________ Д.Г. Киселев | F5: ____________________ О.В. Перегудова
C14: Примерное 10-ти дневное меню
C15: для обеспечения бесплатным
C16: двухразовым питанием
C17: обучающихся с ограниченными возможностями
C18: здоровья, детей-инвалидов
C19: возрастной группы 12-18 лет
